fUSD/lending_fUSD_20250521
["ID","MTS","AMOUNT","RATE_DAILY","PERIOD"]
[361803917,1747818633254,-522.94094492,0.00032,2]
[361803918,1747818638031,-305.31,0.00031657,2]
[361803919,1747818638041,-5257.39882234,0.00032,2]
[361803920,1747818638051,-301.21,0.00032079,2]
[361803921,1747818638063,-302.57,0.00032079,2]
[361803922,1747818638074,-305.8,0.00032079,2]
[361803923,1747818638086,-561.49,0.00032196,2]
[361803924,1747818638096,-500.0,0.00032822,7]
[361803925,1747818638106,-202.43154859,0.000329,27]
[361803926,1747818638116,-202.43154854,0.00033107,28]
[361803927,1747818638126,-200.0,0.00033138,117]
[361803928,1747818638137,-35147.0,0.00033239,2]
[361803929,1747818638146,-202.43154854,0.00033314,28]
[361803930,1747818638156,-212.0,0.00033429,2]
[361803931,1747818638167,-1856.86,0.000335,2]
[361803932,1747818638177,-1434.55,0.000335,15]
[361803933,1747818638187,-154.84,0.000335,31]
[361803934,1747818638197,-202.43154854,0.00033521,29]
[361803935,1747818638208,-666.02,0.00033557,2]
[361803936,1747818638218,-166.49,0.00033651,2]
[361803937,1747818638228,-150.0,0.00033657,7]
[361803938,1747818638240,-23534.26,0.00033688,2]
[361803939,1747818638251,-202.43154854,0.00033728,29]
[361803940,1747818638262,-207.4,0.00033755,2]
[361803941,1747818638273,-1199.20597015,0.00033755,2]
[361803942,1747818638282,-668.65185757,0.00033755,2]
[361803944,1747818638292,-668.65185757,0.00033755,2]
[361803946,1747818638301,-151.0,0.00033755,2]
[361803948,1747818638311,-250.0,0.00033791,2]
[361803950,1747818638321,-200.0,0.000339,6]
[361803952,1747818638331,-164.93,0.00033913,2]
[361803954,1747818638341,-202.43154854,0.00033934,29]
[361803956,1747818638351,-500.0,0.00033955,7]
[361803958,1747818638360,-200.0,0.00033978,2]
[361803960,1747818638370,-1198.48,0.00033989,2]
[361803962,1747818638380,-500.0,0.00034089,2]
[361803964,1747818638390,-202.43154854,0.00034141,30]
[361803966,1747818638400,-500.0,0.00034174,2]
[361803967,1747818638410,-1851.1,0.00034195,2]
[361803968,1747818638421,-1000.0,0.00034211,2]
[361803969,1747818638430,-192.05,0.00034212,120]
[361803970,1747818638440,-150.0,0.00034212,30]
[361803971,1747818638450,-150.0,0.00034212,30]
[361803972,1747818638461,-150.0,0.00034212,30]
[361803974,1747818638472,-150.0,0.00034212,30]
[361803975,1747818638482,-1972.83855111,0.00034212,30]
[361803976,1747818638491,-878.19080263,0.00034212,30]
[361803977,1747818638501,-1354.45024999,0.00034212,30]
[361803978,1747818638511,-7927.7337799,0.00034212,30]
[361803979,1747818638521,-153.73,0.00034212,2]
[361803980,1747818638533,-693.3919763,0.00034303,2]
[361803981,1747818638543,-200.0,0.00034332,2]
[361803982,1747818638555,-202.43154854,0.00034348,30]
[361803983,1747818638565,-165.65,0.00034351,30]
[361803984,1747818638575,-1000.0,0.00034377,2]
[361803985,1747818638585,-6376.478,0.00034442,2]
[361803986,1747818638594,-154.0,0.00034442,2]
[361803987,1747818638603,-1149.0,0.00034442,2]
[361803988,1747818638615,-561.49,0.0003446,2]
[361803989,1747818638625,-150.0,0.00034521,2]
[361803990,1747818638634,-150.0,0.00034521,2]
[361803991,1747818638645,-599.44678,0.00034547,4]
[361803992,1747818638655,-202.43154854,0.00034555,31]
[361803993,1747818638666,-1185.21,0.00034623,2]
[361803994,1747818638676,-234.33,0.00034637,2]
[361803995,1747818638686,-150.0,0.00034678,2]
[361803996,1747818638696,-152.0,0.000347,3]
[361803997,1747818638706,-305.93,0.00034751,2]
[361803998,1747818638717,-303.92,0.00034751,2]
[361803999,1747818638727,-302.22,0.00034751,2]
[361804000,1747818638739,-301.41,0.00034751,2]
[361804001,1747818638749,-202.43154854,0.00034762,31]
[361804002,1747818638759,-303.65,0.00034832,2]
[361804003,1747818638771,-301.9,0.00034832,2]
[361804004,1747818638781,-304.79,0.00034832,2]
[361804005,1747818638790,-305.12,0.00034832,2]
[361804006,1747818638800,-300.55,0.00034832,2]
[361804007,1747818638811,-305.57,0.00034832,2]
[361804008,1747818638821,-305.64,0.00034832,2]
[361804009,1747818638832,-305.19,0.00034832,2]
[361804010,1747818638843,-305.06,0.00034832,2]
[361804011,1747818638852,-500.0,0.00034832,2]
[361804012,1747818638862,-150.0,0.00034832,2]
[361804013,1747818638872,-500.0,0.00034832,2]
[361804014,1747818638882,-150.0,0.00034832,2]
[361804015,1747818638891,-158.69787781,0.00034832,2]
[361804016,1747818638901,-156.85515144,0.00034832,2]
[361804017,1747818638911,-150.0,0.00034832,2]
[361804018,1747818638922,-500.0,0.00034832,2]
[361804019,1747818638932,-719.04747942,0.00034851,2]
[361804020,1747818638943,-500.0,0.00034859,2]
[361804021,1747818638953,-150.0,0.00034859,2]
[361804022,1747818638963,-500.0,0.00034859,2]
[361804023,1747818638973,-163.22325592,0.00034859,2]
[361804024,1747818638982,-150.0,0.00034859,2]
[361804025,1747818638992,-500.0,0.00034859,2]
[361804026,1747818639002,-152.94,0.00034878,2]
[361804027,1747818639012,-157.28656283,0.00034879,2]
[361804028,1747818639022,-151.11012977,0.00034879,2]
[361804029,1747818639032,-150.0,0.00034879,2]
[361804030,1747818639042,-155.0,0.00034879,2]
[361804031,1747818639052,-500.0,0.00034887,2]
[361804032,1747818639062,-150.0,0.00034887,2]
[361804033,1747818639072,-500.0,0.00034887,2]
[361804034,1747818639081,-245.44501458,0.00034887,2]
[361804035,1747818639091,-500.0,0.00034887,2]
[361804036,1747818639101,-160.0,0.000349,10]
[361804037,1747818639112,-150.0,0.00034906,2]
[361804038,1747818639122,-158.21395899,0.0003491,2]
[361804039,1747818639133,-150.0,0.0003491,2]
[361804040,1747818639142,-196.2382328,0.0003491,2]
[361804041,1747818639152,-150.0,0.0003491,2]
[361804042,1747818639162,-300.12,0.0003491,2]
[361804043,1747818639172,-305.17,0.0003491,2]
[361804044,1747818639182,-302.25,0.0003491,2]
[361804045,1747818639192,-302.73,0.0003491,2]
[361804046,1747818639202,-305.9,0.0003491,2]
[361804047,1747818639212,-303.57,0.0003491,2]
[361804048,1747818639222,-500.0,0.00034914,2]
[361804049,1747818639233,-228.46718706,0.00034914,2]
[361804050,1747818639377,-500.0,0.00034914,2]
[361804051,1747818639388,-500.0,0.00034914,2]
[361804052,1747818639397,-150.0,0.00034934,2]
[361804053,1747818639407,-150.0,0.00034937,2]
[361804054,1747818639416,-150.0,0.00034937,2]
[361804055,1747818639425,-500.0,0.00034942,2]
[361804056,1747818639434,-500.0,0.00034942,2]
[361804057,1747818639442,-500.0,0.00034942,2]
[361804058,1747818639451,-150.0,0.00034961,2]
[361804059,1747818639460,-150.0,0.00034965,2]
[361804060,1747818639469,-203.31638223,0.00034965,2]
[361804061,1747818639477,-202.43154854,0.00034969,31]
[361804062,1747818639486,-500.0,0.00034969,2]
[361804063,1747818639496,-500.0,0.00034969,2]
[361804064,1747818639504,-500.0,0.00034969,2]
[361804065,1747818639511,-150.0,0.00034989,2]
[361804066,1747818639518,-297.0677831,0.00034992,2]
[361804067,1747818639524,-500.0,0.00034996,2]
[361804068,1747818639533,-500.0,0.00034996,2]
[361804069,1747818639540,-389.406766,0.00034996,2]
[361804070,1747818639547,-2530.45,0.00035,30]
[361804071,1747818639555,-1800.0,0.00035,36]
[361804072,1747818639561,-167.24790176,0.00035016,2]
[361804073,1747818639569,-500.0,0.00035024,2]
[361804074,1747818639576,-500.0,0.00035024,2]
[361804075,1747818639586,-317.8235,0.00035035,2]
[361804076,1747818639595,-189.53857222,0.00035051,2]
[361804077,1747818639604,-500.0,0.00035051,2]
[361804078,1747818639614,-500.0,0.00035079,2]
[361804079,1747818639623,-440.0,0.00035106,2]
[361804080,1747818639634,-215.0738,0.00035124,2]
[361804081,1747818639644,-1243.57659104,0.00035124,2]
[361804082,1747818639653,-693.3919763,0.00035124,2]
[361804083,1747818639663,-156.587,0.00035124,2]
[361804084,1747818639672,-150.0,0.00035135,2]
[361804085,1747818639681,-1306.0,0.00035135,2]
[361804086,1747818639689,-934.0,0.00035135,2]
[361804087,1747818639699,-1460.0,0.00035135,2]
[361804088,1747818639709,-921.0,0.00035135,2]
[361804089,1747818639718,-554.0,0.00035135,2]
[361804090,1747818639729,-585.0,0.00035135,2]
[361804091,1747818639739,-1258.0,0.00035135,2]
[361804092,1747818639749,-202.43154854,0.00035176,32]
[361804093,1747818639760,-168.26,0.00035177,2]
[361804094,1747818639770,-1056.509,0.00035177,41]
[361804095,1747818639781,-150.052117,0.00035198,120]
[361804096,1747818639792,-305.03,0.00035212,2]
[361804097,1747818639804,-304.57,0.00035212,2]
[361804098,1747818639814,-303.24,0.00035212,2]
[361804099,1747818639823,-304.44,0.00035212,2]
[361804100,1747818639834,-150.052117,0.00035298,120]
[361804101,1747818639843,-200.0,0.00035331,10]
[361804102,1747818639853,-3818.42859871,0.00035341,2]
[361804103,1747818639862,-795.22,0.00035342,2]
[361804104,1747818639870,-706.48,0.00035342,2]
[361804105,1747818639878,-150.34,0.00035342,2]
[361804106,1747818639887,-162.8,0.00035342,2]
[361804107,1747818639895,-150.34,0.00035342,2]
[361804108,1747818639903,-162.8,0.00035342,2]
[361804109,1747818639911,-340.14,0.00035342,2]
[361804110,1747818639918,-150.34,0.00035342,2]
[361804111,1747818639927,-150.34,0.00035342,2]
[361804112,1747818639937,-500.0,0.00035362,7]
[361804113,1747818639946,-202.43154854,0.00035383,32]
[361804114,1747818639956,-3818.42859863,0.00035388,2]
[361804115,1747818639966,-150.052117,0.00035398,120]
[361804116,1747818639975,-745.65223616,0.00035399,2]
[361804117,1747818639984,-172.00069879,0.000354,2]
[361804118,1747818639994,-3818.42859863,0.00035435,2]
[361804119,1747818640004,-5800.0,0.00035439,2]
[361804120,1747818640014,-3818.42859863,0.00035483,2]
[361804121,1747818640023,-27870.5791,0.00035496,2]
[361804122,1747818640032,-169.13202049,0.00035496,2]
[361804123,1747818640042,-150.052117,0.00035498,120]
[361804124,1747818640052,-244.05311657,0.00035513,2]
[361804125,1747818640061,-182.99033758,0.00035526,2]
[361804126,1747818640072,-3818.42859863,0.0003553,2]
[361804127,1747818640081,-190.94935954,0.00035535,2]
[361804128,1747818640091,-3818.42859863,0.00035577,2]
[361804129,1747818640101,-183.052117,0.00035578,120]
[361804130,1747818640110,-26387.1491115,0.00035589,2]
[361804131,1747818640120,-202.43154854,0.0003559,33]
[361804132,1747818640130,-39580.7236673,0.00035593,2]
[361804133,1747818640140,-39580.7236673,0.00035595,2]
[361804134,1747818640150,-47451.8100597,0.00035597,61]
[361804135,1747818640159,-13193.5745558,0.00035597,2]
[361804136,1747818640168,-12466.80131231,0.00035598,2]
[361804137,1747818640178,-3064.16678542,0.00035598,2]
[361804138,1747818640188,-193.39975728,0.00035598,7]
[361804139,1747818640197,-1000.0,0.00035599,2]
[361804140,1747818640207,-3500.0,0.000356,4]
[361804141,1747818640217,-27092.59197586,0.000356,10]
[361804142,1747818640227,-105548.596446,0.00035603,2]
[361804143,1747818640237,-65868.36073153,0.00035603,2]
[361804144,1747818640287,-401.0,0.00035603,2]
[361804145,1747818640354,-453.92938,0.00035603,2]
[361804146,1747818640381,-476.33,0.00035603,2]
[361804147,1747818640397,-12208.49536487,0.00035603,2]
[361804148,1747818640407,-7218.91958876,0.00035605,2]
[361804149,1747818640416,-92355.0218904,0.00035606,2]
[361804150,1747818640426,-187691.909308,0.00035606,2]
[361804151,1747818640436,-274.96674656,0.00035606,2]
[361804152,1747818640446,-7218.91958876,0.00035606,2]
[361804153,1747818640456,-203.48,0.00035606,2]
[361804154,1747818640466,-203.48,0.00035606,2]
[361804155,1747818640476,-1272.94,0.00035607,5]
[361804156,1747818640489,-1229.15,0.00035608,5]
[361804157,1747818640499,-11602.8329174,0.00035612,2]
[361804158,1747818640509,-5264.0828437,0.00035612,2]
[361804159,1747818640519,-204274.3876248,0.00035612,2]
[361804160,1747818640529,-156.167167,0.00035612,2]
[361804161,1747818640539,-475.24695995,0.00035613,5]
[361804162,1747818640551,-103.75304005,0.00035613,5]
[361804163,1747818640561,-459.30943495,0.00035615,2]
[361804164,1747818640573,-542.42266505,0.00035615,2]
[361804165,1747818640582,-150.0,0.00035615,2]
[361804166,1747818640592,-700.0,0.00035615,120]
[361804167,1747818640601,-76.02449514,0.00035615,120]
[361804168,1747818640613,-623.97550486,0.00035615,120]
[361804169,1747818640624,-700.0,0.00035615,120]
[361804170,1747818640635,-510.6031727,0.00035615,120]
[361804171,1747818640650,-189.3968273,0.00035615,120]
[361804172,1747818640661,-700.0,0.00035615,120]
[361804173,1747818640671,-700.0,0.00035615,120]
[361804174,1747818640681,-700.0,0.00035615,120]
[361804175,1747818640691,-412.95626254,0.00035615,120]
[361804176,1747818640700,-5000.0,0.00035615,2]
[361804177,1747818640711,-347.27290406,0.00035616,2]
[361804178,1747818640723,-2585.3740061,0.00035616,2]
[361804179,1747818640738,-942.48696991,0.00035616,2]
[361804222,1747818644200,-172.00069869,0.000354,2]
[361804224,1747818644211,-3722.49326815,0.00035616,2]
[361804230,1747818644257,-348735.52678358,0.00035616,2]
[361804232,1747818644274,-979.16171516,0.00035616,2]
[361804234,1747818644305,-8400.0,0.00035616,2]
[361804235,1747818644347,-1719.11,0.00035616,2]
[361804236,1747818644624,-616.47201005,0.00035616,2]
[361804245,1747818646128,-188.98828115,0.00033379,30]
[361804246,1747818646139,-172.00069869,0.000354,2]
[361804247,1747818646150,-28.70322931,0.00035598,2]
[361804248,1747818646164,-181.83098809,0.00035598,2]
[361804249,1747818646175,-3744.07401193,0.00035616,2]
[361804250,1747818646188,-1147.35848162,0.00035616,2]
[361804251,1747818646201,-3817.66096719,0.00035616,2]
[361804252,1747818646211,-1268.26,0.00035616,5]
[361804253,1747818646222,-12500.0,0.00035616,5]
[361804254,1747818646232,-151.0,0.00035616,7]
[361804255,1747818646242,-151.0,0.00035616,7]
[361804256,1747818646252,-151.0,0.00035616,7]
[361804257,1747818646263,-185.968597,0.00035616,7]
[361804258,1747818646273,-4020.84155285,0.00035616,5]
[361804259,1747818646284,-185.717381,0.00035616,7]
[361804260,1747818646294,-151.0,0.00035616,7]
[361804261,1747818646304,-151.0,0.00035616,7]
[361804262,1747818646317,-151.0,0.00035616,7]
[361804263,1747818646327,-151.0,0.00035616,7]
[361804264,1747818646338,-151.0,0.00035616,7]
[361804265,1747818646348,-151.0,0.00035616,7]
[361804266,1747818646358,-151.0,0.00035616,7]
[361804267,1747818646367,-151.0,0.00035616,7]
[361804268,1747818646377,-161.582422,0.00035616,7]
[361804270,1747818646387,-420.0,0.00035616,5]
[361804272,1747818646397,-151.0,0.00035616,7]
[361804274,1747818646407,-151.0,0.00035616,7]
[361804276,1747818646417,-151.0,0.00035616,7]
[361804278,1747818646427,-420.0,0.00035616,5]
[361804280,1747818646438,-420.0,0.00035616,5]
[361804282,1747818646448,-151.0,0.00035616,7]
[361804284,1747818646458,-151.0,0.00035616,7]
[361804286,1747818646470,-151.0,0.00035616,7]
[361804288,1747818646480,-298.84212624,0.00035616,5]
[361804290,1747818646491,-151.930647,0.00035616,7]
[361804292,1747818646501,-448.97623004,0.00035616,5]
[361804294,1747818646512,-412.18045079,0.00035616,5]
[361804296,1747818646523,-420.0,0.00035616,5]
[361804298,1747818646534,-420.0,0.00035616,5]
[361804300,1747818646544,-420.0,0.00035616,5]
[361804303,1747818646554,-420.0,0.00035616,5]
[361804305,1747818646566,-151.0,0.00035616,7]
[361804307,1747818646576,-151.0,0.00035616,7]
[361804309,1747818646587,-152.951084,0.00035616,7]
[361804311,1747818646596,-420.0,0.00035616,5]
[361804313,1747818646606,-420.0,0.00035616,5]
[361804315,1747818646616,-420.0,0.00035616,5]
[361804317,1747818646626,-420.0,0.00035616,5]
[361804319,1747818646637,-420.0,0.00035616,5]
[361804321,1747818646647,-151.0,0.00035616,7]
[361804323,1747818646658,-420.0,0.00035616,5]
[361804325,1747818646668,-420.0,0.00035616,5]
[361804327,1747818646679,-420.0,0.00035616,5]
[361804329,1747818646690,-1188.0,0.00035616,7]
[361804330,1747818646700,-1188.0,0.00035616,7]
[361804332,1747818646711,-516.35407979,0.00035616,7]
[361804333,1747818646721,-151.0,0.00035616,7]
[361804334,1747818646734,-125.2344621,0.00035616,7]
[361804335,1747818647519,-164.8279309,0.00035616,7]
[361804336,1747818647528,-420.0,0.00035616,5]
[361804337,1747818647538,-420.0,0.00035616,5]
[361804338,1747818647548,-151.0,0.00035616,7]
[361804339,1747818647557,-151.0,0.00035616,7]
[361804340,1747818647567,-151.0,0.00035616,7]
[361804341,1747818647577,-155.707883,0.00035616,7]
[361804342,1747818647587,-420.0,0.00035616,5]
[361804343,1747818647597,-168.102172,0.00035616,5]
[361804344,1747818647607,-420.0,0.00035616,5]
[361804345,1747818647617,-420.0,0.00035616,5]
[361804346,1747818647627,-151.448734,0.00035616,5]
[361804347,1747818647637,-420.0,0.00035616,5]
[361804348,1747818647647,-287.52662,0.00035616,5]
[361804349,1747818647657,-151.0,0.00035616,7]
[361804350,1747818647667,-152.223012,0.00035616,7]
[361804351,1747818647677,-420.0,0.00035616,5]
[361804352,1747818647688,-420.0,0.00035616,5]
[361804353,1747818647699,-154.484406,0.00035616,5]
[361804354,1747818647708,-118.6792421,0.00035616,5]
[361804355,1747818647723,-108.61308063,0.00035616,5]
[361804356,1747818647734,-420.0,0.00035616,5]
[361804357,1747818647747,-420.0,0.00035616,5]
[361804358,1747818647757,-151.0,0.00035616,7]
[361804359,1747818647768,-151.0,0.00035616,7]
[361804360,1747818647779,-151.0,0.00035616,7]
[361804361,1747818647788,-151.0,0.00035616,7]
[361804362,1747818647799,-151.0,0.00035616,7]
[361804363,1747818647809,-152.760654,0.00035616,7]
[361804364,1747818647820,-151.0,0.00035616,7]
[361804365,1747818647830,-151.0,0.00035616,7]
[361804366,1747818647840,-158.14338,0.00035616,7]
[361804367,1747818647850,-420.0,0.00035616,5]
[361804368,1747818647860,-420.0,0.00035616,5]
[361804369,1747818647870,-420.0,0.00035616,5]
[361804370,1747818647880,-420.0,0.00035616,5]
[361804371,1747818647890,-420.0,0.00035616,5]
[361804372,1747818647900,-420.0,0.00035616,5]
[361804373,1747818647910,-446.30223259,0.00035616,5]
[361804374,1747818647919,-151.0,0.00035616,7]
[361804375,1747818647929,-420.0,0.00035616,5]
[361804376,1747818647939,-152.4486,0.00035616,7]
[361804377,1747818647948,-151.0,0.00035616,7]
[361804378,1747818647958,-151.0,0.00035616,7]
[361804379,1747818647968,-163.054844,0.00035616,7]
[361804380,1747818647978,-420.0,0.00035616,5]
[361804381,1747818647988,-420.0,0.00035616,5]
[361804382,1747818647998,-420.0,0.00035616,5]
[361804383,1747818648008,-420.0,0.00035616,5]
[361804384,1747818648018,-420.0,0.00035616,5]
[361804385,1747818648028,-420.0,0.00035616,5]
[361804386,1747818648038,-420.0,0.00035616,5]
[361804387,1747818648048,-420.0,0.00035616,5]
[361804388,1747818648059,-420.0,0.00035616,5]
[361804389,1747818648070,-420.0,0.00035616,5]
[361804390,1747818648081,-420.0,0.00035616,5]
[361804391,1747818648091,-420.0,0.00035616,5]
[361804392,1747818648101,-420.0,0.00035616,5]
[361804393,1747818648111,-420.0,0.00035616,5]
[361804394,1747818648122,-420.0,0.00035616,5]
[361804395,1747818648132,-420.0,0.00035616,5]
[361804396,1747818648142,-420.0,0.00035616,5]
[361804397,1747818648153,-420.0,0.00035616,5]
[361804398,1747818648163,-427.832265,0.00035616,5]
[361804399,1747818648175,-420.0,0.00035616,5]
[361804400,1747818648185,-420.0,0.00035616,5]
[361804401,1747818648195,-420.0,0.00035616,5]
[361804402,1747818648205,-420.0,0.00035616,5]
[361804403,1747818648215,-204.980763,0.00035616,5]
[361804404,1747818648225,-420.0,0.00035616,5]
[361804405,1747818648235,-420.0,0.00035616,5]
[361804406,1747818648246,-420.0,0.00035616,5]
[361804407,1747818648256,-420.0,0.00035616,5]
[361804408,1747818648267,-420.0,0.00035616,5]
[361804409,1747818648278,-151.0,0.00035616,7]
[361804410,1747818648288,-151.0,0.00035616,7]
[361804411,1747818648298,-151.0,0.00035616,7]
[361804412,1747818648309,-174.331728,0.00035616,7]
[361804413,1747818648318,-420.0,0.00035616,5]
[361804414,1747818648328,-343.310764,0.00035616,5]
[361804415,1747818648338,-420.0,0.00035616,5]
[361804416,1747818648348,-151.0,0.00035616,7]
[361804417,1747818648360,-420.0,0.00035616,5]
[361804418,1747818648370,-420.0,0.00035616,5]
[361804419,1747818648380,-151.0,0.00035616,7]
[361804420,1747818648390,-151.0,0.00035616,7]
[361804421,1747818648401,-151.0,0.00035616,7]
[361804422,1747818648411,-151.0,0.00035616,7]
[361804423,1747818648421,-151.0,0.00035616,7]
[361804424,1747818648431,-151.0,0.00035616,7]
[361804425,1747818648441,-420.0,0.00035616,5]
[361804426,1747818648451,-420.0,0.00035616,5]
[361804427,1747818648463,-420.0,0.00035616,5]
[361804428,1747818648473,-420.0,0.00035616,5]
[361804429,1747818648483,-420.0,0.00035616,5]
[361804430,1747818648493,-151.0,0.00035616,7]
[361804431,1747818648504,-151.0,0.00035616,7]
[361804432,1747818648515,-151.0,0.00035616,7]
[361804433,1747818648525,-151.0,0.00035616,7]
[361804434,1747818648535,-420.0,0.00035616,5]
[361804435,1747818648544,-151.0,0.00035616,7]
[361804436,1747818648554,-420.0,0.00035616,5]
[361804437,1747818648567,-420.0,0.00035616,5]
[361804438,1747818648585,-151.0,0.00035616,7]
[361804439,1747818648604,-420.0,0.00035616,5]
[361804440,1747818648620,-151.0,0.00035616,7]
[361804441,1747818648630,-151.0,0.00035616,7]
[361804442,1747818648642,-151.0,0.00035616,7]
[361804443,1747818648654,-151.0,0.00035616,7]
[361804444,1747818648665,-420.0,0.00035616,5]
[361804445,1747818648675,-497.0,0.00035616,5]
[361804446,1747818648686,-420.0,0.00035616,5]
[361804447,1747818648696,-1764.17,0.00035616,5]
[361804448,1747818648707,-152.503878,0.00035616,7]
[361804449,1747818648718,-420.0,0.00035616,5]
[361804450,1747818648728,-420.0,0.00035616,5]
[361804451,1747818648743,-420.0,0.00035616,5]
[361804452,1747818648753,-420.0,0.00035616,5]
[361804453,1747818648763,-428.23,0.00035616,5]
[361804454,1747818648774,-369.8546259,0.00035616,7]
[361804455,1747818648784,-420.0,0.00035616,5]
[361804456,1747818648795,-420.0,0.00035616,5]
[361804457,1747818648805,-295.9504171,0.00035616,5]
[361804458,1747818648816,-1137.07,0.00035616,5]
[361804459,1747818648828,-420.0,0.00035616,5]
[361804460,1747818648838,-420.0,0.00035616,5]
[361804461,1747818648848,-511.03,0.00035616,5]
[361804462,1747818648859,-420.0,0.00035616,5]
[361804463,1747818648869,-472.17629246,0.00035616,5]
[361804464,1747818648879,-420.0,0.00035616,5]
[361804465,1747818648889,-420.0,0.00035616,5]
[361804466,1747818648900,-1513.36,0.00035616,5]
[361804467,1747818648911,-151.0,0.00035616,7]
[361804468,1747818648920,-2020.56,0.00035616,5]
[361804469,1747818648931,-151.0,0.00035616,7]
[361804470,1747818648941,-153.783987,0.00035616,7]
[361804471,1747818648952,-420.0,0.00035616,5]
[361804472,1747818648963,-420.0,0.00035616,5]
[361804473,1747818648975,-420.0,0.00035616,5]
[361804474,1747818648985,-151.0,0.00035616,7]
[361804475,1747818648995,-151.0,0.00035616,7]
[361804476,1747818649006,-420.0,0.00035616,5]
[361804477,1747818649016,-151.0,0.00035616,7]
[361804478,1747818649026,-420.0,0.00035616,5]
[361804479,1747818649036,-420.0,0.00035616,5]
[361804480,1747818649047,-784.73,0.00035616,5]
[361804481,1747818649057,-420.0,0.00035616,5]
[361804482,1747818649066,-420.0,0.00035616,5]
[361804483,1747818649076,-420.0,0.00035616,5]
[361804484,1747818649087,-664.19,0.00035616,5]
[361804485,1747818649097,-420.0,0.00035616,5]
[361804486,1747818649106,-420.0,0.00035616,5]
[361804487,1747818649117,-1361.82,0.00035616,5]
[361804488,1747818649127,-420.0,0.00035616,5]
[361804489,1747818649138,-420.0,0.00035616,5]
[361804490,1747818649147,-420.0,0.00035616,5]
[361804491,1747818649158,-420.0,0.00035616,5]
[361804492,1747818649169,-1000.0,0.00035616,30]
[361804493,1747818649179,-409.45697887,0.00035616,5]
[361804494,1747818649189,-233.146234,0.00035616,7]
[361804495,1747818649199,-522.29,0.00035616,5]
[361804496,1747818649209,-494.16,0.00035616,5]
[361804497,1747818649219,-420.0,0.00035616,5]
[361804498,1747818649229,-420.0,0.00035616,5]
[361804499,1747818649240,-497.18,0.00035616,5]
[361804500,1747818649249,-20.55927565,0.00035616,5]
[361804501,1747818679758,28996.7,0.00011,2]
[361804502,1747818679787,24471.13,0.00011,2]
[361804503,1747818688641,200.0,0.00025,60]
[361804504,1747818696812,499.5,0.00027397,120]
[361804505,1747818704507,250.0,0.00025,60]
[361804506,1747818710317,100000.0,0.00011,2]
[361804507,1747818716883,231.92,0.0002,30]
[361804508,1747818727756,231.92,0.0002,30]
[361804509,1747819241443,150.0,0.00013,5]
[361804513,1747819695177,439.64339138,0.00027397,120]
[361804515,1747819750121,-300.0,0.00011999,2]
[361804516,1747819750146,-500.0,0.00011999,2]
[361804517,1747819750173,-500.0,0.00011999,2]
[361804518,1747819750198,-500.0,0.00011999,2]
[361804519,1747819750220,-500.0,0.00011999,2]
[361804520,1747819750245,-500.0,0.00011999,2]
[361804521,1747819750269,-500.0,0.00011999,2]
[361804522,1747819750292,-500.0,0.00011999,2]
[361804523,1747819750316,-500.0,0.00011999,2]